[Event "*** Titled Tuesday Blitz"]
[Site "Chess.com"]
[Date "2019.03.05"]
[Round "10"]
[White "chenrip"]
[Black "Vamostodorecto"]
[Result "0-1"]
[WhiteElo "2329"]
[BlackElo "2536"]
[TimeControl "180+2"]
[EndTime "15:30:28 PST"]
[Termination "Vamostodorecto won by resignation"]

1. e4 {[%clk 0:03:01.9]} 1... e6 {[%clk 0:03:00.9]} 2. d4 {[%clk 0:03:02.7]}
2... d5 {[%clk 0:03:02.8]} 3. Nc3 {[%clk 0:03:03.8]} 3... Bb4 {[%clk 0:03:02.4]}
4. e5 {[%clk 0:03:04.9]} 4... c5 {[%clk 0:03:02.7]} 5. a3 {[%clk 0:03:06.1]}
5... Bxc3+ {[%clk 0:03:04.3]} 6. bxc3 {[%clk 0:03:08]} 6... Ne7 {[%clk
0:03:05.6]} 7. a4 {[%clk 0:03:09.6]} 7... b6 {[%clk 0:03:04.6]} 8. Qg4 {[%clk
0:03:09.7]} 8... Nf5 {[%clk 0:02:55.8]} 9. Bd3 {[%clk 0:03:09.6]} 9... h5 {[%clk
0:02:52.3]} 10. Qf3 {[%clk 0:03:08.9]} 10... cxd4 {[%clk 0:02:49.5]} 11. Bxf5
{[%clk 0:03:07.4]} 11... exf5 {[%clk 0:02:51.4]} 12. cxd4 {[%clk 0:03:08.3]}
12... Qc7 {[%clk 0:02:49.3]} 13. Ne2 {[%clk 0:03:03.1]} 13... Nc6 {[%clk
0:02:38]} 14. O-O {[%clk 0:03:00.6]} 14... h4 {[%clk 0:02:31.7]} 15. h3 {[%clk
0:03:00.5]} 15... Ba6 {[%clk 0:02:11.4]} 16. c3 {[%clk 0:02:51.7]} 16... Qd7
{[%clk 0:02:04]} 17. Ba3 {[%clk 0:02:48.6]} 17... Rh6 {[%clk 0:02:02.8]} 18.
Rfe1 {[%clk 0:02:41.7]} 18... O-O-O {[%clk 0:01:58.5]} 19. a5 {[%clk 0:02:38.5]}
19... g5 {[%clk 0:01:42.3]} 20. axb6 {[%clk 0:02:38.1]} 20... axb6 {[%clk
0:01:44.2]} 21. Bd6 {[%clk 0:02:34.4]} 21... Kb7 {[%clk 0:01:42.9]} 22. Qe3
{[%clk 0:02:24.9]} 22... Rg6 {[%clk 0:01:40.8]} 23. Rxa6 {[%clk 0:02:07]} 23...
Kxa6 {[%clk 0:01:40.3]} 24. Rb1 {[%clk 0:02:07.9]} 24... Na5 {[%clk 0:01:37.1]}
25. Qd3+ {[%clk 0:02:05.7]} 25... Nc4 {[%clk 0:01:37.6]} 26. Nc1 {[%clk
0:01:48.3]} 26... Kb7 {[%clk 0:01:37.1]} 27. Na2 {[%clk 0:01:47.1]} 27... Nxd6
{[%clk 0:01:35.8]} 28. exd6 {[%clk 0:01:48]} 28... Rxd6 {[%clk 0:01:37.5]} 29.
Nb4 {[%clk 0:01:48.6]} 29... Ra8 {[%clk 0:01:33.5]} 30. Re1 {[%clk 0:01:45]}
30... Re6 {[%clk 0:01:33.7]} 31. Rb1 {[%clk 0:01:38.9]} 31... g4 {[%clk
0:01:29.3]} 32. Kh2 {[%clk 0:01:30.2]} 32... Rg6 {[%clk 0:01:18.7]} 33. c4
{[%clk 0:01:20.7]} 33... g3+ {[%clk 0:01:19.1]} 34. fxg3 {[%clk 0:01:21.1]}
34... Rxg3 {[%clk 0:01:18.9]} 35. Qe2 {[%clk 0:01:07.7]} 35... dxc4 {[%clk
0:01:09.3]} 36. Qxc4 {[%clk 0:01:08.3]} 36... Qd6 {[%clk 0:00:52.9]} 37. Kh1
{[%clk 0:01:06.7]} 37... Raa3 {[%clk 0:00:39.1]} 38. Qxf7+ {[%clk 0:01:05.4]}
38... Kb8 {[%clk 0:00:32.3]} 39. Qxf5 {[%clk 0:00:43]} 39... Rab3 {[%clk
0:00:18]} 40. Na6+ {[%clk 0:00:34.2]} 40... Ka7 {[%clk 0:00:14.1]} 41. Rc1
{[%clk 0:00:34.4]} 41... Kxa6 {[%clk 0:00:12.7]} 42. Qc8+ {[%clk 0:00:34]} 42...
Ka5 {[%clk 0:00:12.3]} 43. Qa8+ {[%clk 0:00:16.6]} 43... Kb4 {[%clk 0:00:13.4]}
44. Qe4 {[%clk 0:00:16.2]} 44... Rxh3+ {[%clk 0:00:13.2]} 45. Kg1 {[%clk
0:00:16.8]} 45... Rhe3 {[%clk 0:00:10]} 46. Qxh4 {[%clk 0:00:15.6]} 46... Qd5
{[%clk 0:00:09.3]} 47. Qf2 {[%clk 0:00:14.4]} 47... Rec3 {[%clk 0:00:09.2]} 48.
Rd1 {[%clk 0:00:14.3]} 48... Rc4 {[%clk 0:00:09.5]} 49. Qe1+ {[%clk 0:00:14.9]}
49... Kb5 {[%clk 0:00:09.1]} 50. Qe8+ {[%clk 0:00:15.9]} 50... Qc6 {[%clk
0:00:08.9]} 51. Qe5+ {[%clk 0:00:16.8]} 51... Kb4 {[%clk 0:00:09]} 52. d5 {[%clk
0:00:18.1]} 52... Qc5+ {[%clk 0:00:09.7]} 53. Kh1 {[%clk 0:00:19]} 53... Rh4+
{[%clk 0:00:10.8]} 0-1

[Event "*** Titled Tuesday Blitz"]
[Site "Chess.com"]
[Date "2019.03.05"]
[Round "10"]
[White "TST2014"]
[Black "chessking2151"]
[Result "0-1"]
[WhiteElo "2516"]
[BlackElo "2597"]
[TimeControl "180+2"]
[EndTime "15:30:35 PST"]
[Termination "chessking2151 won on time"]

1. d4 {[%clk 0:03:01.9]} 1... Nf6 {[%clk 0:03:00.8]} 2. c4 {[%clk 0:03:01.2]}
2... e6 {[%clk 0:03:02.2]} 3. Nf3 {[%clk 0:03:01.5]} 3... d5 {[%clk 0:03:01.7]}
4. Nc3 {[%clk 0:03:02.1]} 4... c6 {[%clk 0:03:03]} 5. e3 {[%clk 0:03:02.6]} 5...
Nbd7 {[%clk 0:03:02.5]} 6. Qc2 {[%clk 0:03:03.7]} 6... Bd6 {[%clk 0:03:03.5]} 7.
Be2 {[%clk 0:03:04]} 7... O-O {[%clk 0:03:04.3]} 8. O-O {[%clk 0:03:05]} 8...
dxc4 {[%clk 0:03:00.3]} 9. a4 {[%clk 0:03:03.9]} 9... e5 {[%clk 0:02:55.7]} 10.
Bxc4 {[%clk 0:03:02.3]} 10... Qe7 {[%clk 0:02:51.9]} 11. h3 {[%clk 0:03:01.6]}
11... a5 {[%clk 0:01:42]} 12. Rd1 {[%clk 0:02:45]} 12... e4 {[%clk 0:01:18.6]}
13. Nh4 {[%clk 0:02:38.3]} 13... Nb6 {[%clk 0:01:18.1]} 14. b3 {[%clk 0:02:20]}
14... g5 {[%clk 0:01:16.6]} 15. Nxe4 {[%clk 0:02:02.3]} 15... Qxe4 {[%clk
0:01:10.1]} 16. Qxe4 {[%clk 0:01:57]} 16... Nxe4 {[%clk 0:01:12]} 17. Nf3 {[%clk
0:01:58.2]} 17... Nxc4 {[%clk 0:01:00.2]} 18. bxc4 {[%clk 0:01:57.4]} 18... Be6
{[%clk 0:00:59.3]} 19. c5 {[%clk 0:01:42]} 19... Bc7 {[%clk 0:01:00.1]} 20. Ne1
{[%clk 0:01:42.8]} 20... Bb3 {[%clk 0:00:55.8]} 21. Rd3 {[%clk 0:01:41.3]} 21...
Bc4 {[%clk 0:00:57.2]} 22. Rda3 {[%clk 0:01:40]} 22... b6 {[%clk 0:00:49.4]} 23.
cxb6 {[%clk 0:01:36.9]} 23... Bxb6 {[%clk 0:00:38.8]} 24. f3 {[%clk 0:01:37.7]}
24... Nf6 {[%clk 0:00:36.9]} 25. Rb1 {[%clk 0:01:34.1]} 25... Rab8 {[%clk
0:00:34.4]} 26. Rc3 {[%clk 0:01:29.1]} 26... Bd5 {[%clk 0:00:26.3]} 27. Nc2
{[%clk 0:01:24.8]} 27... Bc7 {[%clk 0:00:22.5]} 28. Ra1 {[%clk 0:01:15.8]} 28...
Rb3 {[%clk 0:00:16]} 29. Ra3 {[%clk 0:01:13.3]} 29... Rb1 {[%clk 0:00:14.5]} 30.
Ra1 {[%clk 0:01:08.9]} 30... Rxa1 {[%clk 0:00:13.5]} 31. Nxa1 {[%clk 0:01:10.5]}
31... Rb8 {[%clk 0:00:12.6]} 32. e4 {[%clk 0:00:56.2]} 32... Rb1 {[%clk
0:00:13.2]} 33. exd5 {[%clk 0:00:52]} 33... Nxd5 {[%clk 0:00:15.1]} 34. Rxc6
{[%clk 0:00:53.2]} 34... Bf4 {[%clk 0:00:15]} 35. Nb3 {[%clk 0:00:52.3]} 35...
Rxb3 {[%clk 0:00:14.4]} 36. Rc5 {[%clk 0:00:47.5]} 36... Rc3 {[%clk 0:00:10.6]}
37. Bxf4 {[%clk 0:00:43.6]} 37... Rxc5 {[%clk 0:00:10.1]} 38. dxc5 {[%clk
0:00:44.7]} 38... gxf4 {[%clk 0:00:11.7]} 39. Kf2 {[%clk 0:00:42.2]} 39... Kf8
{[%clk 0:00:12.7]} 40. Ke2 {[%clk 0:00:43.8]} 40... Nc3+ {[%clk 0:00:12.7]} 41.
Kd3 {[%clk 0:00:45.4]} 41... Nxa4 {[%clk 0:00:14.2]} 42. c6 {[%clk 0:00:47]}
42... Ke7 {[%clk 0:00:14.3]} 43. Kc4 {[%clk 0:00:47.9]} 43... Kd6 {[%clk
0:00:14.3]} 44. Kb5 {[%clk 0:00:49.2]} 44... Nc3+ {[%clk 0:00:13.3]} 45. Kxa5
{[%clk 0:00:42.2]} 45... Kxc6 {[%clk 0:00:14.3]} 46. Kb4 {[%clk 0:00:43.8]}
46... Nd1 {[%clk 0:00:13.6]} 47. Kc4 {[%clk 0:00:44.5]} 47... Ne3+ {[%clk
0:00:14.7]} 48. Kd4 {[%clk 0:00:46.2]} 48... Nxg2 {[%clk 0:00:16.1]} 49. Ke5
{[%clk 0:00:47.6]} 49... Kc5 {[%clk 0:00:16.6]} 50. Kf6 {[%clk 0:00:43.7]} 50...
h5 {[%clk 0:00:17.6]} 51. Kxf7 {[%clk 0:00:43.3]} 51... h4 {[%clk 0:00:18.4]}
52. Kg6 {[%clk 0:00:44.5]} 52... Kd4 {[%clk 0:00:20.3]} 53. Kf5 {[%clk
0:00:45.7]} 53... Ke3 {[%clk 0:00:21.8]} 54. Kg4 {[%clk 0:00:47]} 54... Kf2
{[%clk 0:00:23.2]} 0-1

[Event "*** Titled Tuesday Blitz"]
[Site "Chess.com"]
[Date "2019.03.05"]
[Round "10"]
[White "tunadrol"]
[Black "bootstar"]
[Result "0-1"]
[WhiteElo "2503"]
[BlackElo "2610"]
[TimeControl "180+2"]
[EndTime "15:30:44 PST"]
[Termination "bootstar won by resignation"]

1. e4 {[%clk 0:03:01.3]} 1... c5 {[%clk 0:02:53.7]} 2. Nf3 {[%clk 0:03:02.3]}
2... Nc6 {[%clk 0:02:55.1]} 3. d4 {[%clk 0:03:03.2]} 3... cxd4 {[%clk 0:02:57]}
4. Nxd4 {[%clk 0:03:04.7]} 4... e5 {[%clk 0:02:58.6]} 5. Nb5 {[%clk 0:03:04]}
5... d6 {[%clk 0:02:59.8]} 6. N1c3 {[%clk 0:03:04.6]} 6... a6 {[%clk 0:03:01]}
7. Na3 {[%clk 0:03:05.1]} 7... Be6 {[%clk 0:03:02.6]} 8. Nc4 {[%clk 0:02:55.4]}
8... Be7 {[%clk 0:03:02.6]} 9. Ne3 {[%clk 0:02:55.7]} 9... Nf6 {[%clk
0:03:02.2]} 10. Be2 {[%clk 0:02:55.8]} 10... O-O {[%clk 0:03:03]} 11. O-O {[%clk
0:02:55.8]} 11... Rc8 {[%clk 0:03:03.5]} 12. Ned5 {[%clk 0:02:51.4]} 12... Nd4
{[%clk 0:03:01.3]} 13. Be3 {[%clk 0:02:40.5]} 13... Nxe2+ {[%clk 0:02:46.7]} 14.
Qxe2 {[%clk 0:02:42.4]} 14... Nxd5 {[%clk 0:02:33.3]} 15. exd5 {[%clk
0:02:27.9]} 15... Bf5 {[%clk 0:02:30.9]} 16. a4 {[%clk 0:02:27.6]} 16... Qa5
{[%clk 0:02:25.6]} 17. Ra3 {[%clk 0:02:12.8]} 17... h6 {[%clk 0:02:02.9]} 18.
Rb3 {[%clk 0:02:11.5]} 18... Qc7 {[%clk 0:01:58.3]} 19. Bb6 {[%clk 0:02:07.6]}
19... Qd7 {[%clk 0:01:57.8]} 20. a5 {[%clk 0:02:04.5]} 20... Bg6 {[%clk
0:01:51.7]} 21. f3 {[%clk 0:01:36]} 21... Kh7 {[%clk 0:01:50.5]} 22. Rb4 {[%clk
0:01:35.6]} 22... f5 {[%clk 0:01:47.7]} 23. Bf2 {[%clk 0:01:27.7]} 23... Bd8
{[%clk 0:01:37.5]} 24. Ra1 {[%clk 0:01:15.6]} 24... Bf7 {[%clk 0:01:27.8]} 25.
Rc4 {[%clk 0:01:13.2]} 25... Bf6 {[%clk 0:01:22.1]} 26. Rb4 {[%clk 0:01:02.9]}
26... Rc7 {[%clk 0:01:17.3]} 27. Bb6 {[%clk 0:00:49.5]} 27... Rcc8 {[%clk
0:01:18.2]} 28. Qd3 {[%clk 0:00:43.8]} 28... Bg6 {[%clk 0:01:16.3]} 29. Ra3
{[%clk 0:00:38.6]} 29... Rfe8 {[%clk 0:01:08.8]} 30. Bf2 {[%clk 0:00:33.4]}
30... e4 {[%clk 0:01:09.3]} 31. fxe4 {[%clk 0:00:30.4]} 31... fxe4 {[%clk
0:01:09]} 32. Nxe4 {[%clk 0:00:26]} 32... Bxb2 {[%clk 0:01:08.1]} 33. Rab3
{[%clk 0:00:22.2]} 33... Qg4 {[%clk 0:00:55.3]} 34. Rxb2 {[%clk 0:00:08.8]}
34... Bxe4 {[%clk 0:00:51.8]} 35. Rxe4 {[%clk 0:00:06.8]} 35... Qxe4 {[%clk
0:00:44.2]} 36. Qxe4+ {[%clk 0:00:06]} 36... Rxe4 {[%clk 0:00:45.7]} 37. Kf1
{[%clk 0:00:05.8]} 37... Ra4 {[%clk 0:00:33.4]} 38. Bb6 {[%clk 0:00:04.2]} 38...
Rac4 {[%clk 0:00:28.5]} 39. Be3 {[%clk 0:00:03.2]} 39... Rxc2 {[%clk 0:00:21.3]}
40. Rxb7 {[%clk 0:00:04.3]} 40... Rf8+ {[%clk 0:00:18.3]} 41. Ke1 {[%clk
0:00:04.8]} 41... Re8 {[%clk 0:00:19.2]} 42. Rb3 {[%clk 0:00:05.8]} 42... Rxg2
{[%clk 0:00:19.6]} 43. Kf1 {[%clk 0:00:07.2]} 43... Rxh2 {[%clk 0:00:20.2]} 44.
Bd4 {[%clk 0:00:08.1]} 44... Rh4 {[%clk 0:00:20.2]} 45. Bb2 {[%clk 0:00:06.2]}
45... Rf4+ {[%clk 0:00:19.5]} 46. Kg2 {[%clk 0:00:06.5]} 46... Re2+ {[%clk
0:00:20.1]} 47. Kg3 {[%clk 0:00:08]} 47... Rf5 {[%clk 0:00:21.1]} 48. Rb7 {[%clk
0:00:08.7]} 48... Rg5+ {[%clk 0:00:22.2]} 49. Kf3 {[%clk 0:00:09.9]} 49... Rd2
{[%clk 0:00:19]} 50. Bc3 {[%clk 0:00:07.6]} 50... Rdxd5 {[%clk 0:00:19.7]} 51.
Rb6 {[%clk 0:00:07.9]} 51... Rd3+ {[%clk 0:00:20]} 52. Kf4 {[%clk 0:00:07.3]}
52... Rxc3 {[%clk 0:00:20.7]} 53. Rxa6 {[%clk 0:00:08.7]} 53... Rc4+ {[%clk
0:00:20.9]} 54. Ke3 {[%clk 0:00:09.1]} 54... Rcc5 {[%clk 0:00:22.8]} 55. Rxd6
{[%clk 0:00:09.1]} 55... Rxa5 {[%clk 0:00:24.2]} 56. Rd4 {[%clk 0:00:10.3]}
56... Raf5 {[%clk 0:00:24.5]} 0-1

[Event "*** Titled Tuesday Blitz"]
[Site "Chess.com"]
[Date "2019.03.05"]
[Round "10"]
[White "GMKrikor"]
[Black "RiskyDecision"]
[Result "1-0"]
[WhiteElo "2697"]
[BlackElo "2426"]
[TimeControl "180+2"]
[EndTime "15:30:51 PST"]
[Termination "GMKrikor won by resignation"]

1. e4 {[%clk 0:03:01.9]} 1... e6 {[%clk 0:03:00.6]} 2. d4 {[%clk 0:03:00.6]}
2... d5 {[%clk 0:03:01.5]} 3. Nd2 {[%clk 0:03:02.3]} 3... c5 {[%clk 0:03:01.3]}
4. Ngf3 {[%clk 0:03:02.6]} 4... cxd4 {[%clk 0:03:01.3]} 5. Nxd4 {[%clk
0:03:02.5]} 5... Nf6 {[%clk 0:03:01.8]} 6. exd5 {[%clk 0:03:03]} 6... Nxd5
{[%clk 0:02:56.4]} 7. N2f3 {[%clk 0:02:59.3]} 7... Bb4+ {[%clk 0:02:56.1]} 8.
Bd2 {[%clk 0:02:59.4]} 8... Bxd2+ {[%clk 0:02:43]} 9. Qxd2 {[%clk 0:03:00.1]}
9... O-O {[%clk 0:02:38.9]} 10. O-O-O {[%clk 0:03:00.7]} 10... Qb6 {[%clk
0:02:22.8]} 11. Bc4 {[%clk 0:02:39.7]} 11... Nc6 {[%clk 0:02:18.8]} 12. Bxd5
{[%clk 0:02:36.3]} 12... exd5 {[%clk 0:02:19.4]} 13. h3 {[%clk 0:02:36]} 13...
Bd7 {[%clk 0:02:08.5]} 14. Rhe1 {[%clk 0:02:33.7]} 14... Rfe8 {[%clk 0:02:07.8]}
15. c3 {[%clk 0:02:15.9]} 15... h6 {[%clk 0:01:59.1]} 16. b3 {[%clk 0:01:43.8]}
16... Re4 {[%clk 0:01:54.1]} 17. Re3 {[%clk 0:01:39.5]} 17... Rxe3 {[%clk
0:01:47.6]} 18. Qxe3 {[%clk 0:01:40.4]} 18... Re8 {[%clk 0:01:48.5]} 19. Qd2
{[%clk 0:01:41.7]} 19... Qc5 {[%clk 0:01:37.2]} 20. Kb2 {[%clk 0:01:41.5]} 20...
Re4 {[%clk 0:01:34.2]} 21. Nc2 {[%clk 0:01:29.5]} 21... Be6 {[%clk 0:01:27.5]}
22. Ne3 {[%clk 0:01:29.8]} 22... b5 {[%clk 0:01:16.9]} 23. Nd4 {[%clk
0:01:25.9]} 23... b4 {[%clk 0:00:47.5]} 24. Nxc6 {[%clk 0:00:59.4]} 24... Qxc6
{[%clk 0:00:48.2]} 25. cxb4 {[%clk 0:01:00.9]} 25... d4 {[%clk 0:00:47.7]} 26.
Nc2 {[%clk 0:01:02.3]} 26... d3 {[%clk 0:00:20.9]} 27. Qxd3 {[%clk 0:00:59.1]}
27... Bf5 {[%clk 0:00:13.2]} 28. Nd4 {[%clk 0:00:36.9]} 28... Qf6 {[%clk
0:00:11.7]} 29. Qc3 {[%clk 0:00:38.3]} 29... Bg6 {[%clk 0:00:12]} 30. f3 {[%clk
0:00:27.9]} 30... Re8 {[%clk 0:00:10.9]} 31. Rd2 {[%clk 0:00:27.5]} 31... Kh7
{[%clk 0:00:11.3]} 32. b5 {[%clk 0:00:23.9]} 32... Rd8 {[%clk 0:00:12.1]} 33. a4
{[%clk 0:00:22.4]} 33... Qf4 {[%clk 0:00:12.9]} 34. Ka3 {[%clk 0:00:14.7]} 34...
Qd6+ {[%clk 0:00:13]} 35. Qb4 {[%clk 0:00:08.8]} 35... Qe5 {[%clk 0:00:09.6]}
36. Qc3 {[%clk 0:00:07.2]} 36... Qd5 {[%clk 0:00:08.4]} 37. f4 {[%clk
0:00:05.8]} 37... Be4 {[%clk 0:00:08.7]} 38. Nf3 {[%clk 0:00:05.3]} 38... Qa8
{[%clk 0:00:06.6]} 39. Rxd8 {[%clk 0:00:06.4]} 39... Qxd8 {[%clk 0:00:08.2]} 40.
Nd4 {[%clk 0:00:05.6]} 40... Qe7+ {[%clk 0:00:06.4]} 41. Kb2 {[%clk 0:00:03.3]}
41... Qd6 {[%clk 0:00:05.5]} 42. g3 {[%clk 0:00:04]} 42... Qg6 {[%clk
0:00:05.1]} 43. h4 {[%clk 0:00:05.1]} 43... h5 {[%clk 0:00:04.9]} 44. Qe3 {[%clk
0:00:06.2]} 44... f5 {[%clk 0:00:04.7]} 45. Qc3 {[%clk 0:00:06.9]} 45... Qd6
{[%clk 0:00:04.1]} 46. a5 {[%clk 0:00:07.8]} 46... Qd8 {[%clk 0:00:03.1]} 47. b4
{[%clk 0:00:05.9]} 47... Qd5 {[%clk 0:00:02.2]} 48. Qc5 {[%clk 0:00:07.1]} 48...
Qd7 {[%clk 0:00:02.8]} 49. Kc3 {[%clk 0:00:08]} 49... Qf7 {[%clk 0:00:03.6]} 50.
Nb3 {[%clk 0:00:08]} 50... Qf6+ {[%clk 0:00:03.6]} 51. Qd4 {[%clk 0:00:09.3]}
51... Qf7 {[%clk 0:00:05]} 52. b6 {[%clk 0:00:09.9]} 52... axb6 {[%clk
0:00:05.6]} 53. Qxb6 {[%clk 0:00:10.9]} 53... Qf6+ {[%clk 0:00:06.2]} 54. Qxf6
{[%clk 0:00:11.5]} 1-0

[Event "*** Titled Tuesday Blitz"]
[Site "Chess.com"]
[Date "2019.03.05"]
[Round "10"]
[White "SuperCheese"]
[Black "volcanoexplorer"]
[Result "0-1"]
[WhiteElo "2593"]
[BlackElo "2392"]
[TimeControl "180+2"]
[EndTime "15:30:53 PST"]
[Termination "volcanoexplorer won by resignation"]

1. d4 {[%clk 0:02:58.8]} 1... Nf6 {[%clk 0:03:00.4]} 2. c4 {[%clk 0:02:59.3]}
2... e6 {[%clk 0:03:01.5]} 3. Nc3 {[%clk 0:02:59.7]} 3... Bb4 {[%clk 0:03:01.9]}
4. Qc2 {[%clk 0:02:57.9]} 4... O-O {[%clk 0:03:02.6]} 5. Nf3 {[%clk 0:02:58.6]}
5... d6 {[%clk 0:02:59.6]} 6. Bg5 {[%clk 0:02:55.3]} 6... Nbd7 {[%clk
0:02:58.3]} 7. g3 {[%clk 0:02:50]} 7... h6 {[%clk 0:02:57.6]} 8. Bxf6 {[%clk
0:02:46.9]} 8... Qxf6 {[%clk 0:02:56.1]} 9. Bg2 {[%clk 0:02:47.8]} 9... e5
{[%clk 0:02:51.3]} 10. O-O {[%clk 0:02:28.5]} 10... c6 {[%clk 0:02:38]} 11. Ne4
{[%clk 0:02:18.3]} 11... Qe7 {[%clk 0:02:37.1]} 12. a3 {[%clk 0:02:15.5]} 12...
Ba5 {[%clk 0:02:35.9]} 13. dxe5 {[%clk 0:01:53]} 13... dxe5 {[%clk 0:02:22.1]}
14. Rfd1 {[%clk 0:01:48.8]} 14... Bc7 {[%clk 0:02:17.9]} 15. c5 {[%clk
0:01:40.8]} 15... f5 {[%clk 0:02:04.3]} 16. Nd6 {[%clk 0:01:39.1]} 16... e4
{[%clk 0:01:55.3]} 17. Nh4 {[%clk 0:01:12.2]} 17... Ne5 {[%clk 0:01:55.1]} 18.
f4 {[%clk 0:01:11.8]} 18... exf3 {[%clk 0:01:46]} 19. exf3 {[%clk 0:01:09.4]}
19... f4 {[%clk 0:01:15.9]} 20. Qe4 {[%clk 0:01:01.1]} 20... fxg3 {[%clk
0:01:04.9]} 21. hxg3 {[%clk 0:00:55.4]} 21... Qf6 {[%clk 0:01:01.5]} 22. f4
{[%clk 0:00:48.6]} 22... Nf7 {[%clk 0:00:39.9]} 23. Ng6 {[%clk 0:00:45.5]} 23...
Bxd6 {[%clk 0:00:27.4]} 24. cxd6 {[%clk 0:00:25.2]} 24... Nxd6 {[%clk
0:00:27.4]} 25. Ne7+ {[%clk 0:00:21.2]} 25... Kf7 {[%clk 0:00:16.6]} 26. Rxd6
{[%clk 0:00:21.1]} 26... Qxd6 {[%clk 0:00:14.4]} 27. Re1 {[%clk 0:00:21.5]}
27... Be6 {[%clk 0:00:13.4]} 28. Ng6 {[%clk 0:00:16.4]} 28... Rae8 {[%clk
0:00:11.4]} 29. Nxf8 {[%clk 0:00:14.8]} 29... Qxf8 {[%clk 0:00:07.5]} 30. Bf3
{[%clk 0:00:11.9]} 30... Qc5+ {[%clk 0:00:06.4]} 31. Qe3 {[%clk 0:00:10.7]}
31... Qxe3+ {[%clk 0:00:06.8]} 32. Rxe3 {[%clk 0:00:11.3]} 32... g6 {[%clk
0:00:08.2]} 33. Re5 {[%clk 0:00:10.6]} 33... Kf6 {[%clk 0:00:08.9]} 34. Kf2
{[%clk 0:00:10.9]} 34... Rd8 {[%clk 0:00:10.3]} 35. Be4 {[%clk 0:00:11.3]} 35...
Rd4 {[%clk 0:00:07.7]} 36. Bxg6 {[%clk 0:00:12]} 36... Rd2+ {[%clk 0:00:06.7]}
37. Ke3 {[%clk 0:00:12.1]} 37... Rxb2 {[%clk 0:00:08.6]} 38. Bd3 {[%clk
0:00:12.8]} 38... Rb3 {[%clk 0:00:09.6]} 39. Rh5 {[%clk 0:00:13.6]} 39... Bc4
{[%clk 0:00:10.4]} 40. Rxh6+ {[%clk 0:00:14.2]} 40... Kg7 {[%clk 0:00:11.4]} 41.
Rd6 {[%clk 0:00:15.2]} 41... Rxa3 {[%clk 0:00:11.5]} 42. Rd7+ {[%clk 0:00:15.9]}
42... Kf6 {[%clk 0:00:11.8]} 43. Kd2 {[%clk 0:00:12.5]} 43... Bxd3 {[%clk
0:00:10.9]} 44. Rxd3 {[%clk 0:00:12.9]} 44... Rxd3+ {[%clk 0:00:08.9]} 45. Kxd3
{[%clk 0:00:14.8]} 45... a5 {[%clk 0:00:10.4]} 46. g4 {[%clk 0:00:15.8]} 46...
b5 {[%clk 0:00:11.4]} 47. Ke4 {[%clk 0:00:15.9]} 47... a4 {[%clk 0:00:12.7]} 48.
g5+ {[%clk 0:00:17.8]} 48... Ke7 {[%clk 0:00:13.2]} 49. Kd3 {[%clk 0:00:17.9]}
49... Ke6 {[%clk 0:00:12.8]} 50. g6 {[%clk 0:00:18.7]} 50... Kf6 {[%clk
0:00:13.8]} 51. f5 {[%clk 0:00:20.2]} 51... c5 {[%clk 0:00:15.4]} 52. Kc3 {[%clk
0:00:21.5]} 52... b4+ {[%clk 0:00:15.2]} 53. Kc4 {[%clk 0:00:22.8]} 53... a3
{[%clk 0:00:12.7]} 54. Kb3 {[%clk 0:00:23.9]} 54... c4+ {[%clk 0:00:13.9]} 55.
Ka2 {[%clk 0:00:24.1]} 55... Kg7 {[%clk 0:00:14.3]} 56. Kb1 {[%clk 0:00:24.3]}
56... b3 {[%clk 0:00:15.4]} 57. Ka1 {[%clk 0:00:25.3]} 57... c3 {[%clk
0:00:15.3]} 58. Kb1 {[%clk 0:00:26.6]} 58... c2+ {[%clk 0:00:16]} 0-1